fUST/lending_fUST_20240803
["ID","MTS","AMOUNT","RATE_DAILY","PERIOD"]
[334037352,1722699060271,-949.67,0.00017808,2]
[334037353,1722699060280,-1446.24,0.00017808,2]
[334037354,1722699060291,-597.16,0.00017808,2]
[334037355,1722699060301,-5232.45,0.00017808,2]
[334037356,1722699060310,-500.0,0.00017808,2]
[334037357,1722699060320,-694.18,0.00017808,2]
[334037358,1722699060330,-892.55,0.00017808,2]
[334037359,1722699060341,-500.0,0.00017808,2]
[334037360,1722699060351,-1325.93,0.00017808,2]
[334037361,1722699060360,-500.0,0.00017808,2]
[334037362,1722699060370,-515.98,0.00017808,2]
[334037363,1722699060380,-714.28,0.00017808,2]
[334037364,1722699060390,-3256.19,0.00017808,2]
[334037365,1722699060400,-2153.7,0.00017808,2]
[334037366,1722699060411,-641.54,0.00017808,2]
[334037367,1722699060421,-500.0,0.00017808,2]
[334037368,1722699060431,-767.4,0.00017808,2]
[334037369,1722699060441,-500.0,0.00017808,2]
[334037370,1722699060457,-592.28,0.00017808,2]
[334037371,1722699060467,-500.0,0.00017808,2]
[334037372,1722699060477,-686.85,0.00017808,2]
[334037373,1722699060487,-1189.7,0.00017808,2]
[334037374,1722699060497,-805.61,0.00017808,2]
[334037375,1722699060507,-657.12,0.00017808,2]
[334037376,1722699060517,-554.91044526,0.00017808,2]
[334037377,1722699060528,-800.93,0.00017808,2]
[334037378,1722699060543,-459.65038958,0.00017882,4]
[334037379,1722699060553,-8876.67025628,0.000179,2]
[334037380,1722699060563,-160.0,0.00017909,3]
[334037381,1722699060574,-153.0,0.00017973,2]
[334037382,1722699060584,-160.0,0.00017999,4]
[334037383,1722699060594,-2000.0,0.00018,2]
[334037384,1722699060604,-2000.0,0.00018,2]
[334037385,1722699060615,-182.5,0.00018,2]
[334037386,1722699060626,-1043.32729122,0.00018,2]
[334037387,1722699060635,-205.49564816,0.00018,2]
[334037388,1722699060645,-1000.0,0.00018,2]
[334037389,1722699060654,-233.33,0.00018082,2]
[334037390,1722699060664,-607.01,0.00018082,2]
[334037391,1722699060674,-500.0,0.00018082,2]
[334037392,1722699060684,-769.21,0.00018082,2]
[334037393,1722699060693,-182.32442779,0.00018082,2]
[334037394,1722699060708,-1120.12,0.00018082,2]
[334037395,1722699060717,-500.0,0.00018082,2]
[334037396,1722699060726,-679.47,0.00018082,2]
[334037397,1722699060736,-151.0,0.00018082,2]
[334037398,1722699060745,-707.74,0.00018082,2]
[334037399,1722699060755,-500.0,0.00018082,2]
[334037400,1722699060764,-1009.79,0.00018082,2]
[334037401,1722699060774,-711.63,0.00018082,2]
[334037402,1722699060783,-151.0,0.00018082,2]
[334037403,1722699060793,-319.3,0.00018082,2]
[334037404,1722699060806,-752.45,0.00018082,2]
[334037405,1722699060816,-4707.88,0.00018082,2]
[334037406,1722699060826,-1534.18,0.00018082,2]
[334037407,1722699060836,-1857.73,0.00018082,2]
[334037408,1722699060846,-1585.13,0.00018082,2]
[334037409,1722699060855,-500.0,0.00018082,2]
[334037410,1722699060865,-5942.63,0.00018082,2]
[334037411,1722699060874,-506.44,0.00018082,2]
[334037412,1722699060884,-500.0,0.00018082,2]
[334037413,1722699060893,-721.25,0.00018082,2]
[334037414,1722699060903,-500.0,0.00018082,2]
[334037415,1722699060912,-1867.7,0.00018082,2]
[334037416,1722699060922,-1546.66,0.00018082,2]
[334037417,1722699060931,-949.67,0.00018082,2]
[334037418,1722699060941,-1446.24,0.00018082,2]
[334037419,1722699060955,-597.16,0.00018082,2]
[334037420,1722699060967,-5232.45,0.00018082,2]
[334037421,1722699060976,-500.0,0.00018082,2]
[334037422,1722699060985,-694.18,0.00018082,2]
[334037423,1722699060996,-892.55,0.00018082,2]
[334037424,1722699061007,-500.0,0.00018082,2]
[334037425,1722699061019,-1325.93,0.00018082,2]
[334037426,1722699061030,-289.70774511,0.00018082,2]
[334037427,1722699061040,-515.98,0.00018082,2]
[334037428,1722699061051,-714.28,0.00018082,2]
[334037429,1722699061063,-3256.19,0.00018082,2]
[334037430,1722699061073,-2153.7,0.00018082,2]
[334037431,1722699061083,-641.54,0.00018082,2]
[334037432,1722699061095,-500.0,0.00018082,2]
[334037433,1722699061106,-767.4,0.00018082,2]
[334037434,1722699061117,-500.0,0.00018082,2]
[334037435,1722699061128,-592.28,0.00018082,2]
[334037436,1722699061140,-500.0,0.00018082,2]
[334037437,1722699061152,-686.85,0.00018082,2]
[334037438,1722699061164,-1189.7,0.00018082,2]
[334037439,1722699061174,-805.61,0.00018082,2]
[334037440,1722699061184,-657.12,0.00018082,2]
[334037441,1722699061194,-800.93,0.00018082,2]
[334037442,1722699061208,-160.0,0.0001809,5]
[334037443,1722699061299,-160.0,0.0001818,6]
[334037444,1722699061311,-600.0,0.00018202,2]
[334037445,1722699061321,-1556.02749897,0.00018222,2]
[334037446,1722699061331,-160.0,0.00018271,7]
[334037447,1722699061341,-1763.21721545,0.00018302,2]
[334037448,1722699061350,-3444.07018925,0.00018316,2]
[334037449,1722699061360,-1500.0,0.00018316,2]
[334037450,1722699061369,-1714.84159531,0.00018346,2]
[334037451,1722699061379,-2124.22844033,0.00018346,2]
[334037452,1722699061389,-1438.09478019,0.00018346,2]
[334037453,1722699061399,-1610.46200292,0.00018346,2]
[334037454,1722699061408,-2124.22844033,0.00018346,2]
[334037455,1722699061418,-233.33,0.00018356,2]
[334037456,1722699061428,-607.01,0.00018356,2]
[334037457,1722699061437,-500.0,0.00018356,2]
[334037458,1722699061450,-769.21,0.00018356,2]
[334037459,1722699061460,-1120.12,0.00018356,2]
[334037460,1722699061469,-500.0,0.00018356,2]
[334037461,1722699061479,-679.47,0.00018356,2]
[334037462,1722699061488,-707.74,0.00018356,2]
[334037463,1722699061497,-500.0,0.00018356,2]
[334037464,1722699061506,-1009.79,0.00018356,2]
[334037465,1722699061515,-711.63,0.00018356,2]
[334037466,1722699061525,-319.3,0.00018356,2]
[334037467,1722699061540,-752.45,0.00018356,2]
[334037468,1722699061550,-4707.88,0.00018356,2]
[334037469,1722699061560,-1534.18,0.00018356,2]
[334037470,1722699061572,-1857.73,0.00018356,2]
[334037471,1722699061584,-1585.13,0.00018356,2]
[334037472,1722699061596,-500.0,0.00018356,2]
[334037473,1722699061608,-5942.63,0.00018356,2]
[334037474,1722699061620,-506.44,0.00018356,2]
[334037475,1722699061630,-500.0,0.00018356,2]
[334037476,1722699061639,-721.25,0.00018356,2]
[334037477,1722699061648,-500.0,0.00018356,2]
[334037478,1722699061657,-1867.7,0.00018356,2]
[334037479,1722699061666,-1546.66,0.00018356,2]
[334037480,1722699061676,-949.67,0.00018356,2]
[334037481,1722699061687,-1446.24,0.00018356,2]
[334037482,1722699061697,-597.16,0.00018356,2]
[334037483,1722699061709,-5232.45,0.00018356,2]
[334037484,1722699061719,-500.0,0.00018356,2]
[334037485,1722699061728,-694.18,0.00018356,2]
[334037486,1722699061738,-892.55,0.00018356,2]
[334037487,1722699061748,-500.0,0.00018356,2]
[334037488,1722699061758,-1325.93,0.00018356,2]
[334037489,1722699061768,-515.98,0.00018356,2]
[334037490,1722699061778,-714.28,0.00018356,2]
[334037491,1722699061788,-3256.19,0.00018356,2]
[334037492,1722699061798,-2153.7,0.00018356,2]
[334037493,1722699061808,-641.54,0.00018356,2]
[334037494,1722699061818,-500.0,0.00018356,2]
[334037495,1722699061828,-767.4,0.00018356,2]
[334037496,1722699061838,-407.81404815,0.00018356,2]
[334037497,1722699061849,-592.28,0.00018356,2]
[334037498,1722699061859,-2162.2903099,0.00018356,2]
[334037499,1722699061869,-500.0,0.00018356,2]
[334037500,1722699061879,-686.85,0.00018356,2]
[334037501,1722699061889,-1189.7,0.00018356,2]
[334037502,1722699061899,-800.93,0.00018356,2]
[334037503,1722699061909,-805.61,0.00018356,2]
[334037504,1722699061918,-657.12,0.00018356,2]
[334037505,1722699061928,-4372.11725753,0.00018356,3]
[334037506,1722699061938,-160.0,0.00018362,8]
[334037507,1722699061947,-2456.63724132,0.00018447,2]
[334037508,1722699061958,-160.0,0.00018452,9]
[334037509,1722699061968,-1262.0,0.00018489,9]
[334037510,1722699061978,-2138.84815515,0.00018489,2]
[334037511,1722699061988,-5925.62349647,0.00018489,2]
[334037512,1722699061997,-5925.62349647,0.00018489,2]
[334037513,1722699062007,-1000.0,0.000185,2]
[334037514,1722699062017,-160.0,0.00018543,10]
[334037515,1722699062027,-492.373335,0.00018587,2]
[334037516,1722699062036,-153.0,0.00018619,2]
[334037517,1722699062047,-153.0,0.00018619,2]
[334037518,1722699062056,-153.0,0.00018619,2]
[334037519,1722699062066,-159.3112718,0.00018619,2]
[334037520,1722699062075,-233.33,0.0001863,2]
[334037521,1722699062085,-607.01,0.0001863,2]
[334037522,1722699062095,-500.0,0.0001863,2]
[334037523,1722699062105,-769.21,0.0001863,2]
[334037524,1722699062115,-1120.12,0.0001863,2]
[334037525,1722699062124,-500.0,0.0001863,2]
[334037526,1722699062134,-679.47,0.0001863,2]
[334037527,1722699062143,-707.74,0.0001863,2]
[334037528,1722699062153,-500.0,0.0001863,2]
[334037529,1722699062163,-1009.79,0.0001863,2]
[334037530,1722699062173,-711.63,0.0001863,2]
[334037531,1722699062183,-151.0,0.0001863,2]
[334037532,1722699062192,-319.3,0.0001863,2]
[334037533,1722699062204,-752.45,0.0001863,2]
[334037534,1722699062214,-4707.88,0.0001863,2]
[334037535,1722699062225,-1534.18,0.0001863,2]
[334037536,1722699062235,-1857.73,0.0001863,2]
[334037537,1722699062245,-1585.13,0.0001863,2]
[334037538,1722699062255,-208.94413421,0.0001863,2]
[334037539,1722699062265,-5942.63,0.0001863,2]
[334037540,1722699062274,-506.44,0.0001863,2]
[334037541,1722699062284,-500.0,0.0001863,2]
[334037542,1722699062294,-721.25,0.0001863,2]
[334037543,1722699062303,-500.0,0.0001863,2]
[334037544,1722699062313,-1867.7,0.0001863,2]
[334037545,1722699062324,-1546.66,0.0001863,2]
[334037546,1722699062333,-949.67,0.0001863,2]
[334037547,1722699062343,-1446.24,0.0001863,2]
[334037548,1722699062352,-597.16,0.0001863,2]
[334037549,1722699062362,-5232.45,0.0001863,2]
[334037550,1722699062371,-164.57691235,0.0001863,2]
[334037551,1722699062382,-694.18,0.0001863,2]
[334037552,1722699062392,-892.55,0.0001863,2]
[334037553,1722699062401,-423.8057816,0.0001863,2]
[334037554,1722699062411,-1325.93,0.0001863,2]
[334037555,1722699062421,-515.98,0.0001863,2]
[334037556,1722699062431,-714.28,0.0001863,2]
[334037557,1722699062442,-3256.19,0.0001863,2]
[334037558,1722699062455,-2153.7,0.0001863,2]
[334037559,1722699062466,-641.54,0.0001863,2]
[334037560,1722699062476,-500.0,0.0001863,2]
[334037561,1722699062485,-767.4,0.0001863,2]
[334037562,1722699062499,-592.28,0.0001863,2]
[334037563,1722699062509,-500.0,0.0001863,2]
[334037564,1722699062520,-1189.7,0.0001863,2]
[334037565,1722699062535,-686.85,0.0001863,2]
[334037566,1722699062544,-805.61,0.0001863,2]
[334037567,1722699062554,-657.12,0.0001863,2]
[334037568,1722699062564,-800.93,0.0001863,2]
[334037569,1722699062575,-160.0,0.00018633,11]
[334037570,1722699062585,-1332.18536403,0.00018657,2]
[334037571,1722699062595,-1889.37,0.000187,31]
[334037572,1722699062605,-1889.37,0.000187,31]
[334037573,1722699062616,-1889.37,0.000187,31]
[334037574,1722699062626,-1889.37,0.000187,31]
[334037575,1722699062636,-1889.37,0.000187,31]
[334037576,1722699062646,-1889.37,0.000187,31]
[334037577,1722699062656,-1889.37,0.000187,31]
[334037578,1722699062666,-1889.37,0.000187,31]
[334037579,1722699062675,-1889.37,0.000187,31]
[334037580,1722699062685,-1889.37,0.000187,31]
[334037581,1722699062694,-1889.37,0.000187,31]
[334037582,1722699062706,-1889.37,0.000187,31]
[334037583,1722699062715,-1889.37,0.000187,31]
[334037584,1722699062723,-1889.37,0.000187,31]
[334037585,1722699062733,-1889.37,0.000187,31]
[334037586,1722699062743,-1889.37,0.000187,31]
[334037587,1722699062752,-1889.37,0.000187,31]
[334037588,1722699062761,-1889.37,0.000187,31]
[334037589,1722699062771,-1889.37,0.000187,31]
[334037590,1722699062782,-1889.37,0.000187,31]
[334037591,1722699062792,-160.0,0.00018724,12]
[334037592,1722699062801,-160.0,0.00018815,13]
[334037593,1722699062812,-991.0,0.0001889,8]
[334037594,1722699062822,-233.33,0.00018904,2]
[334037595,1722699062832,-607.01,0.00018904,2]
[334037596,1722699062842,-473.98061552,0.00018904,2]
[334037597,1722699062851,-769.21,0.00018904,2]
[334037598,1722699062861,-1120.12,0.00018904,2]
[334037599,1722699062871,-500.0,0.00018904,2]
[334037600,1722699062880,-679.47,0.00018904,2]
[334037601,1722699062890,-707.74,0.00018904,2]
[334037602,1722699062900,-500.0,0.00018904,2]
[334037603,1722699062910,-1009.79,0.00018904,2]
[334037604,1722699062919,-711.63,0.00018904,2]
[334037605,1722699062928,-151.0,0.00018904,2]
[334037606,1722699062938,-319.3,0.00018904,2]
[334037607,1722699062948,-752.45,0.00018904,2]
[334037608,1722699062959,-4707.88,0.00018904,2]
[334037609,1722699062968,-1534.18,0.00018904,2]
[334037610,1722699062978,-1857.73,0.00018904,2]
[334037611,1722699062987,-1585.13,0.00018904,2]
[334037612,1722699062997,-5942.63,0.00018904,2]
[334037613,1722699063007,-506.44,0.00018904,2]
[334037614,1722699063018,-500.0,0.00018904,2]
[334037615,1722699063027,-721.25,0.00018904,2]
[334037616,1722699063037,-397.822199,0.00018904,2]
[334037617,1722699063048,-1867.7,0.00018904,2]
[334037618,1722699063059,-1546.66,0.00018904,2]
[334037619,1722699063070,-949.67,0.00018904,2]
[334037620,1722699063080,-1446.24,0.00018904,2]
[334037621,1722699063090,-597.16,0.00018904,2]
[334037622,1722699063100,-5232.45,0.00018904,2]
[334037623,1722699063110,-694.18,0.00018904,2]
[334037624,1722699063120,-892.55,0.00018904,2]
[334037625,1722699063130,-1325.93,0.00018904,2]
[334037626,1722699063140,-515.98,0.00018904,2]
[334037627,1722699063151,-714.28,0.00018904,2]
[334037628,1722699063162,-3256.19,0.00018904,2]
[334037629,1722699063172,-2153.7,0.00018904,2]
[334037630,1722699063183,-641.54,0.00018904,2]
[334037631,1722699063194,-170.21060221,0.00018904,2]
[334037632,1722699063206,-767.4,0.00018904,2]
[334037633,1722699063216,-592.28,0.00018904,2]
[334037634,1722699063227,-500.0,0.00018904,2]
[334037635,1722699063239,-1189.7,0.00018904,2]
[334037636,1722699063250,-686.85,0.00018904,2]
[334037637,1722699063260,-805.61,0.00018904,2]
[334037638,1722699063271,-657.12,0.00018904,2]
[334037639,1722699063281,-800.93,0.00018904,2]
[334037640,1722699063291,-160.0,0.00018905,14]
[334037641,1722699063302,-160.0,0.00018996,15]
[334037642,1722699063312,-156.1101723,0.00019,2]
[334037643,1722699063322,-10886.28374405,0.00019,2]
[334037644,1722699063333,-3946.48814442,0.00019,2]
[334037645,1722699063343,-10000.0,0.00019,2]
[334037646,1722699063352,-10000.0,0.00019,2]
[334037647,1722699063362,-17083.83387693,0.00019,2]
[334037648,1722699063372,-933.58267253,0.00019,2]
[334037649,1722699063381,-1000.0,0.00019,2]
[334037650,1722699063391,-294.2310959,0.00019014,2]
[334037651,1722699063402,-153.0,0.00019014,2]
[334037652,1722699063411,-294.2310959,0.00019014,2]
[334037653,1722699063420,-588.2364486,0.00019014,2]
[334037654,1722699063429,-250.0,0.00019041,2]
[334037655,1722699063440,-160.0,0.00019086,16]
[334037656,1722699063452,-186.17460922,0.000191,2]
[334037657,1722699063462,-160.0,0.00019177,17]
[334037658,1722699063473,-233.33,0.00019178,2]
[334037659,1722699063482,-200.0,0.00019178,7]
[334037660,1722699063491,-200.0,0.00019178,7]
[334037661,1722699063501,-200.0,0.00019178,7]
[334037662,1722699063579,-200.0,0.00019178,7]
[334037663,1722699063599,-200.0,0.00019178,7]
[334037664,1722699063609,-200.0,0.00019178,7]
[334037665,1722699063620,-200.0,0.00019178,7]
[334037666,1722699063631,-200.0,0.00019178,7]
[334037667,1722699063641,-200.0,0.00019178,7]
[334037668,1722699063651,-200.12311965,0.00019178,7]
[334037669,1722699063661,-607.01,0.00019178,2]
[334037670,1722699063670,-769.21,0.00019178,2]
[334037671,1722699063680,-1120.12,0.00019178,2]
[334037672,1722699063690,-379.9000222,0.00019178,2]
[334037673,1722699063701,-679.47,0.00019178,2]
[334037674,1722699063717,-707.74,0.00019178,2]
[334037675,1722699063728,-500.0,0.00019178,2]
[334037676,1722699063737,-1009.79,0.00019178,2]
[334037677,1722699063747,-711.63,0.00019178,2]
[334037678,1722699063758,-151.0,0.00019178,2]
[334037679,1722699063768,-319.3,0.00019178,2]
[334037680,1722699063777,-752.45,0.00019178,2]
[334037681,1722699063787,-4707.88,0.00019178,2]
[334037682,1722699063797,-1534.18,0.00019178,2]
[334037683,1722699063808,-1857.73,0.00019178,2]
[334037684,1722699063818,-1585.13,0.00019178,2]
[334037685,1722699063828,-5942.63,0.00019178,2]
[334037686,1722699063837,-506.44,0.00019178,2]
[334037687,1722699063847,-500.0,0.00019178,2]
[334037688,1722699063856,-721.25,0.00019178,2]
[334037689,1722699063866,-1867.7,0.00019178,2]
[334037690,1722699063878,-1546.66,0.00019178,2]
[334037691,1722699063888,-949.67,0.00019178,2]
[334037692,1722699063899,-1446.24,0.00019178,2]
[334037693,1722699063909,-561.06,0.00019178,2]
[334037694,1722699063918,-561.06,0.00019178,2]
[334037695,1722699063927,-597.16,0.00019178,2]
[334037696,1722699063936,-561.06,0.00019178,2]
[334037697,1722699063946,-561.06,0.00019178,2]
[334037698,1722699063957,-561.06,0.00019178,2]
[334037699,1722699063966,-561.06,0.00019178,2]
[334037700,1722699063976,-561.06,0.00019178,2]
[334037701,1722699063985,-561.06,0.00019178,2]
[334037702,1722699063994,-561.06,0.00019178,2]
[334037703,1722699064004,-561.06,0.00019178,2]
[334037704,1722699064012,-561.06,0.00019178,2]
[334037705,1722699064023,-561.06,0.00019178,2]
[334037706,1722699064033,-561.06,0.00019178,2]
[334037707,1722699064043,-561.06,0.00019178,2]
[334037708,1722699064052,-561.06,0.00019178,2]
[334037709,1722699064063,-561.06,0.00019178,2]
[334037710,1722699064072,-561.06,0.00019178,2]
[334037711,1722699064082,-561.06,0.00019178,2]
[334037712,1722699064092,-561.06,0.00019178,2]
[334037713,1722699064102,-561.06,0.00019178,2]
[334037714,1722699064112,-561.06,0.00019178,2]
[334037715,1722699064122,-5232.45,0.00019178,2]
[334037716,1722699064132,-694.18,0.00019178,2]
[334037717,1722699064142,-892.55,0.00019178,2]
[334037718,1722699064152,-1325.93,0.00019178,2]
[334037719,1722699064162,-515.98,0.00019178,2]
[334037720,1722699064172,-714.28,0.00019178,2]
[334037721,1722699064183,-3256.19,0.00019178,2]
[334037722,1722699064192,-2153.7,0.00019178,2]
[334037723,1722699064205,-641.54,0.00019178,2]
[334037724,1722699064217,-767.4,0.00019178,2]
[334037725,1722699064231,-592.28,0.00019178,2]
[334037726,1722699064240,-500.0,0.00019178,2]
[334037727,1722699064250,-1189.7,0.00019178,2]
[334037728,1722699064261,-686.85,0.00019178,2]
[334037729,1722699064272,-805.61,0.00019178,2]
[334037730,1722699064281,-657.12,0.00019178,2]
[334037731,1722699064291,-800.93,0.00019178,2]
[334037732,1722699064301,-1000.0,0.00019178,2]
[334037733,1722699064311,-381.876916,0.00019178,2]
[334037734,1722699064321,-442.0232927,0.00019178,4]
[334037735,1722699064331,-160.0,0.00019267,18]
[334037736,1722699064341,-160.0,0.00019358,19]
[334037737,1722699064350,-160.0,0.00019449,20]
[334037738,1722699064360,-233.33,0.00019452,2]
[334037739,1722699064369,-607.01,0.00019452,2]
[334037740,1722699064379,-769.21,0.00019452,2]
[334037741,1722699064389,-1120.12,0.00019452,2]
[334037742,1722699064399,-679.47,0.00019452,2]
[334037743,1722699064410,-707.74,0.00019452,2]
[334037744,1722699064419,-500.0,0.00019452,2]
[334037745,1722699064430,-1009.79,0.00019452,2]
[334037746,1722699064440,-711.63,0.00019452,2]
[334037747,1722699064452,-151.0,0.00019452,2]
[334037748,1722699064466,-319.3,0.00019452,2]
[334037749,1722699064475,-752.45,0.00019452,2]
[334037750,1722699064485,-4707.88,0.00019452,2]
[334037751,1722699064495,-1534.18,0.00019452,2]
[334037752,1722699064505,-1857.73,0.00019452,2]
[334037753,1722699064515,-1585.13,0.00019452,2]
[334037754,1722699064526,-5942.63,0.00019452,2]
[334037755,1722699064539,-506.44,0.00019452,2]
[334037756,1722699064550,-594.54129549,0.00019452,2]
[334037757,1722699064561,-721.25,0.00019452,2]
[334037758,1722699064572,-1867.7,0.00019452,2]
[334037759,1722699064582,-1546.66,0.00019452,2]
[334037760,1722699064593,-949.67,0.00019452,2]
[334037761,1722699064603,-1446.24,0.00019452,2]
[334037762,1722699064614,-597.16,0.00019452,2]
[334037763,1722699064624,-561.06,0.00019452,2]
[334037764,1722699064634,-5232.45,0.00019452,2]
[334037765,1722699064644,-694.18,0.00019452,2]
[334037766,1722699064654,-892.55,0.00019452,2]
[334037767,1722699064664,-1325.93,0.00019452,2]
[334037768,1722699064674,-515.98,0.00019452,2]
[334037769,1722699064684,-714.28,0.00019452,2]
[334037770,1722699064694,-3256.19,0.00019452,2]
[334037771,1722699064706,-2153.7,0.00019452,2]
[334037772,1722699064715,-641.54,0.00019452,2]
[334037773,1722699064725,-767.4,0.00019452,2]
[334037774,1722699064734,-592.28,0.00019452,2]
[334037775,1722699064743,-566.25941107,0.00019452,2]
[334037776,1722699064752,-1189.7,0.00019452,2]
[334037777,1722699064761,-686.85,0.00019452,2]
[334037778,1722699064771,-805.61,0.00019452,2]
[334037779,1722699064781,-800.93,0.00019452,2]
[334037780,1722699064790,-657.12,0.00019452,2]
[334037781,1722699064801,-214.0,0.000195,10]
[334037782,1722699064810,-1000.0,0.000195,2]
[334037783,1722699064820,-160.0,0.00019539,21]
[334037784,1722699064829,-153.0,0.00019578,2]
[334037785,1722699064839,-153.0,0.00019578,2]
[334037786,1722699064849,-153.0,0.00019578,2]
[334037787,1722699064858,-153.0,0.00019578,2]
[334037788,1722699064868,-310.4030296,0.00019578,2]
[334037789,1722699064878,-153.21246347,0.000196,2]
[334037790,1722699064888,-160.0,0.0001963,22]
[334037791,1722699064897,-160.0,0.0001972,23]
[334037792,1722699064907,-233.33,0.00019726,2]
[334037793,1722699064916,-607.01,0.00019726,2]
[334037794,1722699064926,-769.21,0.00019726,2]
[334037795,1722699064936,-1120.12,0.00019726,2]
[334037796,1722699064945,-679.47,0.00019726,2]
[334037797,1722699064956,-707.74,0.00019726,2]
[334037798,1722699064966,-264.06053325,0.00019726,2]
[334037799,1722699064976,-1009.79,0.00019726,2]
[334037800,1722699064985,-711.63,0.00019726,2]
[334037801,1722699064995,-752.45,0.00019726,2]
[334037802,1722699065004,-4707.88,0.00019726,2]
[334037803,1722699065014,-1534.18,0.00019726,2]
[334037804,1722699065024,-1857.73,0.00019726,2]
[334037805,1722699065034,-1585.13,0.00019726,2]
[334037806,1722699065043,-5942.63,0.00019726,2]
[334037807,1722699065053,-506.44,0.00019726,2]
[334037808,1722699065063,-721.25,0.00019726,2]
[334037809,1722699065073,-1867.7,0.00019726,2]
[334037810,1722699065083,-1546.66,0.00019726,2]
[334037811,1722699065092,-949.67,0.00019726,2]
[334037812,1722699065102,-1446.24,0.00019726,2]
[334037813,1722699065111,-597.16,0.00019726,2]
[334037814,1722699065121,-561.06,0.00019726,2]
[334037815,1722699065131,-5232.45,0.00019726,2]
[334037816,1722699065140,-694.18,0.00019726,2]
[334037817,1722699065153,-892.55,0.00019726,2]
[334037818,1722699065164,-1325.93,0.00019726,2]
[334037819,1722699065175,-515.98,0.00019726,2]
[334037820,1722699065186,-714.28,0.00019726,2]
[334037821,1722699065198,-3256.19,0.00019726,2]
[334037822,1722699065210,-2153.7,0.00019726,2]
[334037823,1722699065220,-641.54,0.00019726,2]
[334037824,1722699065231,-767.4,0.00019726,2]
[334037825,1722699065242,-592.28,0.00019726,2]
[334037826,1722699065253,-1189.7,0.00019726,2]
[334037827,1722699065263,-686.85,0.00019726,2]
[334037828,1722699065272,-805.61,0.00019726,2]
[334037829,1722699065283,-657.12,0.00019726,2]
[334037830,1722699065293,-800.93,0.00019726,2]
[334037831,1722699065302,-160.0,0.00019811,24]
[334037832,1722699065312,-160.0,0.00019902,25]
[334037833,1722699065321,-160.0,0.00019992,26]
[334037834,1722699065331,-1428.62711696,0.00019999,2]
[334037835,1722699065342,-21051.53914489,0.0002,2]
[334037836,1722699065352,-360.11922589,0.0002,2]
[334037837,1722699065362,-361.84094333,0.0002,2]
[334037838,1722699065371,-2338.76045622,0.0002,2]
[334037839,1722699065381,-677.35932152,0.0002,2]
[334037840,1722699065391,-435.0,0.0002,2]
[334037841,1722699065400,-154.77557542,0.0002,2]
[334037842,1722699065410,-222.09419338,0.0002,2]
[334037843,1722699065420,-154.77557542,0.0002,2]
[334037844,1722699065430,-53059.2487619,0.0002,2]
[334037845,1722699065440,-1854.42112388,0.0002,2]
[334037846,1722699065450,-4281.86057075,0.0002,2]
[334037847,1722699065460,-5998.86427456,0.0002,2]
[334037848,1722699065470,-158.90493323,0.0002,2]
[334037849,1722699065479,-235.97887084,0.0002,2]
[334037850,1722699065489,-12900.0,0.0002,2]
[334037851,1722699065498,-183.0,0.0002,2]